bitfinex/quotes_BTCUSD_20241123
["timestamp","ask_amount","ask_price","bid_price","bid_amount"]
[1732335611093,0.02769777,98154.0,98153.0,0.306908]
[1732335611588,0.02769777,98156.0,98153.0,0.306908]
[1732335611814,0.0017202,98157.0,98154.0,0.30689853]
[1732335612517,0.02769777,98155.0,98154.0,0.30689853]
[1732335613503,0.0017202,98157.0,98155.0,0.023]
[1732335613739,0.0017202,98157.0,98155.0,0.1296]
[1732335613963,0.01750617,98174.0,98155.0,0.1296]
[1732335614173,0.1,98172.0,98167.0,0.30686433]
[1732335614416,0.1,98172.0,98167.0,0.023]
[1732335614886,0.1,98172.0,98167.0,0.32986433]
[1732335615126,0.1,98172.0,98168.0,0.30686433]
[1732335615371,0.1,98172.0,98167.0,0.32986433]
[1732335616086,0.1,98172.0,98167.0,0.37086915]
[1732335617040,0.11750617,98172.0,98167.0,0.37086915]
[1732335617273,0.11750617,98172.0,98169.0,0.023]
[1732335617499,0.11750617,98172.0,98170.0,0.00809128]
[1732335617743,0.11750617,98172.0,98170.0,0.01618256]
[1732335621805,0.11750617,98172.0,98171.0,0.03358583]
[1732335622047,0.11750617,98172.0,98171.0,0.04976839]
[1732335622987,0.1,98172.0,98171.0,0.04976839]
[1732335623210,0.11750617,98172.0,98171.0,0.04976839]
[1732335627517,0.1,98172.0,98171.0,0.04976839]
[1732335627733,0.11750617,98172.0,98171.0,0.04976839]
[1732335630852,0.1,98172.0,98171.0,0.04976839]
[1732335631181,0.11750617,98172.0,98171.0,0.04976839]
[1732335631337,0.1,98172.0,98171.0,0.04976839]
[1732335631545,0.11750617,98172.0,98171.0,0.05914979]
[1732335631756,0.1,98172.0,98171.0,0.04976839]
[1732335632001,0.11750617,98172.0,98171.0,0.05914778]
[1732335632842,0.1,98172.0,98171.0,0.05914778]
[1732335633054,0.11750617,98172.0,98171.0,0.05914778]
[1732335633734,0.1,98172.0,98171.0,0.05914778]
[1732335633930,0.11750617,98172.0,98171.0,0.05914778]
[1732335636318,0.01750617,98172.0,98171.0,0.08214778]
[1732335636551,0.01750617,98173.0,98172.0,0.023]
[1732335636764,0.01750617,98173.0,98172.0,0.04350202]
[1732335636974,0.01750617,98173.0,98172.0,0.05288198]
[1732335638743,0.04748148,98180.0,98173.0,0.01484022]
[1732335638984,0.04748148,98180.0,98174.0,0.023]
[1732335639200,0.04748148,98180.0,98176.0,0.023]
[1732335639414,0.04748148,98180.0,98178.0,0.023]
[1732335639643,0.04748148,98186.0,98179.0,0.01484022]
[1732335639857,0.04748148,98191.0,98180.0,0.023]
[1732335640071,0.04748148,98191.0,98179.0,0.02421702]
[1732335640072,0.04748148,98192.0,98182.0,0.023]
[1732335640294,0.04748148,98190.0,98183.0,0.01484022]
[1732335640508,0.04748148,98190.0,98183.0,0.02421702]
[1732335641813,0.12878148,98190.0,98183.0,0.02421702]
[1732335643381,0.12878148,98190.0,98183.0,0.04721702]
[1732335644924,0.09580228,98184.0,98183.0,0.02421702]
[1732335645144,0.09580228,98184.0,98183.0,0.0093768]
[1732335645366,0.09580228,98184.0,98182.0,0.04115687]
[1732335645554,0.09580228,98184.0,98176.0,0.00262324]
[1732335645555,0.00127317,98183.0,98177.0,0.023]
[1732335645924,0.00127317,98183.0,98177.0,0.02938542]
[1732335646199,0.00127317,98183.0,98179.0,0.023]
[1732335646560,0.00127317,98183.0,98180.0,0.00937712]
[1732335646787,0.00127317,98183.0,98181.0,0.00638542]
[1732335646992,0.00127317,98183.0,98181.0,0.01576238]
[1732335648969,0.00127317,98183.0,98182.0,0.30672193]
[1732335649357,0.00127317,98183.0,98181.0,0.00937696]
[1732335649581,0.00127317,98183.0,98182.0,0.00937505]
[1732335650454,0.00127317,98183.0,98177.0,0.023]
[1732335650656,0.00127317,98183.0,98182.0,0.00937505]
[1732335650889,0.00127317,98183.0,98177.0,0.023]
[1732335651164,0.00127317,98183.0,98182.0,0.00937505]
[1732335651376,0.00127317,98183.0,98177.0,0.023]
[1732335651599,0.00127317,98183.0,98178.0,0.00937569]
[1732335652461,0.00127317,98183.0,98179.0,0.02837859]
[1732335652889,0.00127317,98183.0,98180.0,0.00937537]
[1732335653114,0.00299257,98183.0,98180.0,0.00937537]
[1732335653548,0.00299257,98183.0,98177.0,0.0238597]
[1732335653784,0.00299257,98183.0,98181.0,0.00937521]
[1732335654202,0.00299257,98183.0,98177.0,0.0238597]
[1732335654440,0.00299257,98183.0,98182.0,0.00937505]
[1732335654882,0.00299257,98183.0,98177.0,0.0238597]
[1732335655098,0.00299257,98183.0,98182.0,0.00937505]
[1732335655306,0.00299257,98183.0,98177.0,0.0238597]
[1732335655506,0.00299257,98183.0,98182.0,0.00937505]
[1732335655703,0.00299257,98183.0,98177.0,0.0238597]
[1732335655929,0.00299257,98183.0,98182.0,0.00937505]
[1732335656127,0.00299257,98183.0,98177.0,0.0238597]
[1732335656337,0.00299257,98183.0,98182.0,0.00937505]
[1732335656554,0.00299257,98183.0,98177.0,0.0238597]
[1732335656766,0.00299257,98183.0,98182.0,0.00937505]
[1732335656992,0.00299257,98183.0,98177.0,0.0238597]
[1732335657211,0.00299257,98183.0,98182.0,0.00937505]
[1732335657424,0.00299257,98183.0,98177.0,0.51464916]
[1732335657683,0.00299257,98183.0,98182.0,0.00937505]
[1732335657891,0.00299257,98183.0,98173.0,0.30730113]
[1732335658097,0.00299257,98183.0,98182.0,0.00937505]
[1732335658301,0.00299257,98183.0,98172.0,0.30730113]
[1732335658514,0.00299257,98183.0,98182.0,0.00937505]
[1732335658734,0.00299257,98183.0,98172.0,0.30730113]
[1732335659185,0.00299257,98183.0,98173.0,0.31667762]
[1732335661548,0.00299257,98183.0,98174.0,0.30730113]
[1732335661995,0.00299257,98183.0,98175.0,0.00937617]
[1732335663625,0.0017194,98183.0,98177.0,0.023]
[1732335664079,0.0017194,98183.0,98179.0,0.023]
[1732335664564,0.0017194,98183.0,98181.0,0.023]
[1732335664802,3.033e-05,98201.0,98181.0,0.023]
[1732335665017,3.033e-05,98201.0,98180.0,0.0093673]
[1732335665018,3.033e-05,98201.0,98199.0,0.30728725]
[1732335665430,3.033e-05,98201.0,98200.0,0.00934768]
[1732335665701,3.033e-05,98201.0,98197.0,0.30728725]
[1732335665946,3.033e-05,98201.0,98200.0,0.00934768]
[1732335666164,3.033e-05,98201.0,98195.0,0.30728725]
[1732335666409,3.033e-05,98201.0,98200.0,0.00934768]
[1732335666670,3.033e-05,98201.0,98194.0,0.30728725]
[1732335666897,3.033e-05,98201.0,98200.0,0.00934816]
[1732335667132,3.033e-05,98201.0,98194.0,0.30728725]
[1732335667369,3.033e-05,98201.0,98183.0,0.06519548]
[1732335667370,3.033e-05,98201.0,98200.0,0.00934816]
[1732335667591,3.033e-05,98201.0,98193.0,0.30728725]
[1732335667836,3.033e-05,98201.0,98195.0,0.00934896]
[1732335668072,3.033e-05,98201.0,98194.0,0.00934912]
[1732335668284,3.033e-05,98201.0,98196.0,0.0093488]
[1732335668508,3.033e-05,98201.0,98195.0,0.00934896]
[1732335668740,3.033e-05,98201.0,98197.0,0.00934864]
[1732335668957,3.033e-05,98201.0,98196.0,0.0093488]
[1732335669243,3.033e-05,98201.0,98198.0,0.00934848]
[1732335669454,3.033e-05,98201.0,98197.0,0.00934864]
[1732335669677,3.033e-05,98201.0,98183.0,0.06371761]
[1732335669678,3.033e-05,98201.0,98199.0,0.023]
[1732335670123,3.033e-05,98201.0,98200.0,0.50156089]
[1732335670345,3.033e-05,98201.0,98200.0,0.03233529]
[1732335670794,0.0017208,98207.0,98201.0,0.023]
[1732335671015,0.0017208,98207.0,98200.0,0.00933529]
[1732335671016,0.0017208,98207.0,98204.0,0.023]
[1732335671235,0.0017208,98207.0,98204.0,0.51502392]
[1732335671481,0.0017208,98207.0,98206.0,0.023]
[1732335671695,0.0017208,98207.0,98206.0,0.1493]
[1732335671696,9.67e-06,98207.0,98206.0,0.1493]
[1732335671947,9.67e-06,98207.0,98206.0,0.15860348]
[1732335675837,9.67e-06,98207.0,98206.0,0.15907006]
[1732335676069,9.67e-06,98207.0,98206.0,0.65034851]
[1732335676301,9.67e-06,98207.0,98206.0,0.15907006]
[1732335677452,9.67e-06,98207.0,98206.0,0.18744865]
[1732335678159,9.67e-06,98207.0,98206.0,0.6787271]
[1732335678377,9.67e-06,98207.0,98206.0,0.18744865]
[1732335678829,9.67e-06,98207.0,98206.0,0.67812405]
[1732335679298,9.67e-06,98207.0,98206.0,0.15907006]
[1732335679730,0.0514212,98227.0,98206.0,0.15907006]
[1732335679969,0.0514212,98227.0,98216.0,0.023]
[1732335680379,0.0514212,98227.0,98217.0,0.00917281]
[1732335680690,0.0514212,98227.0,98218.0,0.023]
[1732335680913,0.0792,98226.0,98214.0,0.30582876]
[1732335681128,0.0017212,98227.0,98220.0,0.023]
[1732335681348,0.0017212,98227.0,98212.0,0.30582876]
[1732335681566,0.0017212,98227.0,98221.0,0.00917515]
[1732335681807,0.0017212,98227.0,98213.0,0.32873018]
[1732335682291,0.0017212,98227.0,98215.0,0.023]
[1732335682734,0.0017212,98227.0,98217.0,0.023]
[1732335683229,0.0017212,98227.0,98219.0,0.023]
[1732335683463,0.0017212,98227.0,98226.0,0.40118243]
[1732335683958,0.0017212,98227.0,98226.0,0.41035678]
[1732335684419,0.0017212,98227.0,98226.0,0.00917435]
[1732335684848,0.0017212,98227.0,98219.0,0.023]
[1732335685291,0.0017212,98227.0,98221.0,0.023]
[1732335685802,0.0017212,98227.0,98223.0,0.023]
[1732335686255,0.0017212,98227.0,98225.0,0.4010966]
[1732335686474,0.0017212,98227.0,98224.0,0.41027143]
[1732335686713,0.0017212,98227.0,98226.0,0.00917451]
[1732335686934,0.0017212,98227.0,98225.0,0.00917467]
[1732335687150,0.0017212,98227.0,98226.0,0.00917451]
[1732335687596,0.04748148,98224.0,98207.0,0.023]
[1732335687849,0.0792,98226.0,98206.0,0.00146568]
[1732335687850,0.04748148,98217.0,98206.0,0.00146568]
[1732335688070,0.04748148,98213.0,98208.0,0.00916627]
[1732335688360,0.04748148,98213.0,98206.0,0.04223482]
[1732335688575,0.04748148,98213.0,98210.0,0.40103712]
[1732335688792,0.04748148,98213.0,98206.0,0.40103712]
[1732335689006,0.00127273,98216.0,98193.0,0.0009804]
[1732335689007,0.04748148,98212.0,98207.0,0.00916466]
[1732335689217,0.04748148,98212.0,98204.0,0.40103712]
[1732335689466,0.04748148,98212.0,98193.0,0.0009804]
[1732335689467,0.04748148,98212.0,98208.0,0.00916793]
[1732335689688,0.04748148,98212.0,98206.0,0.00086]
[1732335689912,0.0792,98217.0,98206.0,0.00086]
[1732335689913,0.04748148,98210.0,98209.0,0.00919219]
[1732335690138,0.04748148,98210.0,98206.0,0.00086]
[1732335690139,0.04748148,98207.0,98206.0,0.00086]
[1732335690393,0.0487544,98207.0,98206.0,0.00086]
[1732335691554,0.04748148,98207.0,98206.0,0.00086]
[1732335692909,0.04748148,98207.0,98206.0,0.01007864]
[1732335693152,0.04748148,98207.0,98206.0,0.00086]
[1732335693363,0.04748148,98207.0,98206.0,0.01007864]
[1732335693585,0.04748148,98207.0,98206.0,0.00086]
[1732335693824,0.04748148,98207.0,98206.0,0.00804211]
[1732335694040,0.04748148,98203.0,98202.0,0.04041942]
[1732335694470,0.04748148,98203.0,98200.0,0.4011731]
[1732335694690,0.04748148,98200.0,98199.0,0.4011731]
[1732335694925,0.04748148,98200.0,98188.0,0.01889707]
[1732335698484,0.04748148,98203.0,98189.0,0.0984]
[1732335698698,0.04748148,98210.0,98189.0,0.0984]
[1732335698925,0.04748148,98210.0,98205.0,0.40151041]
[1732335699139,0.04748148,98210.0,98206.0,0.40151041]
[1732335699391,0.04748148,98210.0,98207.0,0.40151041]
[1732335700531,0.04748148,98210.0,98192.0,0.023]
[1732335701448,0.04748148,98210.0,98194.0,0.023]
[1732335701909,0.04748148,98210.0,98195.0,0.00907114]
[1732335702138,0.04748148,98210.0,98196.0,0.023]
[1732335702353,0.04748148,98210.0,98196.0,0.05137859]
[1732335702568,0.04748148,98210.0,98198.0,0.023]
[1732335703018,0.12668148,98200.0,98199.0,0.00907049]
[1732335703253,0.12668148,98200.0,98194.0,0.3056557]
[1732335703470,0.12668148,98200.0,98199.0,0.00906889]
[1732335703736,0.12668148,98200.0,98194.0,0.3056557]
[1732335703971,0.12668148,98200.0,98199.0,0.00906811]
[1732335704191,0.12668148,98200.0,98194.0,0.3056557]
[1732335704403,0.12668148,98200.0,98194.0,0.30624377]
[1732335704639,0.0792,98200.0,98195.0,0.30624377]
[1732335704889,0.04748148,98198.0,98195.0,0.31531319]
[1732335705369,0.0792,98206.0,98195.0,0.31531319]
[1732335705370,0.04748148,98204.0,98196.0,0.30624377]
[1732335705584,0.04748148,98204.0,98197.0,0.30624377]
[1732335705818,0.04748148,98204.0,98197.0,0.31531431]
[1732335706918,0.04748148,98204.0,98198.0,0.34070195]
[1732335707365,0.04748148,98204.0,98199.0,0.31531399]
[1732335707584,0.04748148,98204.0,98200.0,0.30624377]
[1732335708043,0.04748148,98204.0,98200.0,0.31531383]
[1732335708496,0.04748148,98209.0,98201.0,0.30624377]
[1732335708763,0.04748148,98207.0,98201.0,0.30624377]
[1732335709016,0.04748148,98209.0,98202.0,0.00906975]
[1732335709498,0.04748148,98208.0,98203.0,0.30649003]
[1732335709902,0.04748148,98208.0,98204.0,0.00907006]
[1732335710405,0.04748148,98205.0,98204.0,0.00907006]
[1732335711832,0.04748148,98205.0,98204.0,0.03445818]
[1732335712050,0.04748148,98205.0,98204.0,0.04352696]
[1732335714194,0.04748148,98205.0,98204.0,0.08528694]
[1732335716560,0.04748148,98205.0,98204.0,0.04352696]
[1732335717684,0.04748148,98205.0,98204.0,0.35001699]
[1732335718191,0.04748148,98205.0,98204.0,0.04352696]
[1732335719151,0.00127283,98217.0,98204.0,0.04352696]
[1732335719152,0.04748148,98212.0,98204.0,0.04352696]
[1732335719370,0.04748148,98212.0,98207.0,0.30658796]
[1732335719838,0.04748148,98212.0,98208.0,0.00907012]
[1732335721449,0.04748148,98212.0,98208.0,0.31568564]
[1732335721671,0.04748148,98212.0,98210.0,0.40243288]
[1732335722116,0.04748148,98212.0,98211.0,0.00755796]
[1732335722807,0.00127283,98217.0,98211.0,0.00755796]
[1732335722808,0.04748148,98213.0,98211.0,0.00755796]
[1732335723026,0.002,98228.0,98201.0,0.0775598]
[1732335723027,0.04875412,98231.0,98201.0,0.0008598]
[1732335723250,0.04748148,98231.0,98212.0,0.00810375]
[1732335723486,0.04748148,98231.0,98213.0,0.0767]
[1732335723714,0.04748148,98229.0,98213.0,0.08480424]
[1732335723984,0.04748148,98232.0,98213.0,0.08480424]
[1732335724220,0.04748148,98232.0,98214.0,0.0454]
[1732335724667,0.04748148,98232.0,98214.0,0.05346235]
[1732335727042,0.04592228,98232.0,98215.0,0.03482076]
[1732335727260,0.04592228,98232.0,98215.0,0.04288295]
[1732335730930,0.0017206,98233.0,98215.0,0.04288295]
[1732335731609,0.0017206,98233.0,98227.0,0.3065042]
[1732335731855,0.0017206,98233.0,98228.0,0.3065042]
[1732335732090,0.0017206,98233.0,98228.0,0.31456543]
[1732335732313,0.0017206,98233.0,98228.0,0.00806123]
[1732335732544,0.0017206,98233.0,98228.0,0.31456543]
[1732335732776,0.0017206,98233.0,98228.0,0.3065042]
[1732335733005,0.0017206,98233.0,98229.0,0.00806107]
[1732335733239,0.0017206,98233.0,98227.0,0.3065042]
[1732335733681,0.0017206,98233.0,98228.0,0.3065042]
[1732335733898,0.0017206,98233.0,98228.0,0.31456543]
[1732335734459,0.0017206,98233.0,98228.0,0.08476123]
[1732335734633,0.0017206,98233.0,98229.0,0.3065042]
[1732335734870,0.0017206,98233.0,98229.0,0.31456527]
[1732335735361,0.0017206,98233.0,98230.0,0.30623444]
[1732335735809,0.0017206,98233.0,98231.0,0.00806075]
[1732335736247,0.0017206,98233.0,98228.0,0.34734494]
[1732335736467,0.0017206,98233.0,98232.0,0.00806059]
[1732335736715,0.0017206,98233.0,98228.0,0.34734494]
[1732335736716,0.04592228,98232.0,98228.0,0.30623444]
[1732335736947,0.12662228,98232.0,98227.0,0.30623444]
[1732335737176,0.12662228,98232.0,98222.0,0.04106524]
[1732335737177,0.12662228,98232.0,98229.0,0.30623444]
[1732335737633,0.12662228,98232.0,98203.0,0.523]
[1732335737634,0.04592228,98229.0,98228.0,0.30623444]
[1732335738102,0.04592228,98229.0,98225.0,0.30623444]
[1732335738336,0.00127258,98228.0,98225.0,0.30623444]
[1732335738561,0.04592228,98225.0,98224.0,0.30623444]
[1732335738778,0.04592228,98224.0,98223.0,0.30623444]
[1732335738992,0.1282,98225.0,98208.0,0.00086]
[1732335738993,0.04592228,98223.0,98222.0,0.30623444]
[1732335739219,0.0492206,98233.0,98222.0,0.30623444]
[1732335739446,0.04592228,98228.0,98225.0,0.30620736]
[1732335739693,0.0017206,98233.0,98225.0,0.30620736]
[1732335739694,0.04592228,98232.0,98225.0,0.30620736]
[1732335739941,0.04592228,98232.0,98223.0,0.3062029]
[1732335740161,0.04592228,98232.0,98222.0,0.3062029]
[1732335740388,0.04592228,98228.0,98222.0,0.3062029]
[1732335740605,0.04592228,98228.0,98227.0,0.30619579]
[1732335741095,0.04592228,98231.0,98227.0,0.30619579]
[1732335741323,0.0017206,98233.0,98227.0,0.30619579]
[1732335741573,0.04592228,98231.0,98228.0,0.30619579]
[1732335742092,0.04592228,98231.0,98229.0,0.01903787]
[1732335742318,0.04592228,98232.0,98229.0,0.01903787]
[1732335742566,0.0017206,98233.0,98230.0,0.02910137]
[1732335743694,0.04764288,98233.0,98230.0,0.02910137]
[1732335743933,0.0017206,98233.0,98230.0,0.02910137]
[1732335744386,0.0017206,98233.0,98230.0,0.33529716]
[1732335746922,0.0017206,98233.0,98231.0,0.02047107]
[1732335747199,0.0017206,98233.0,98231.0,0.32666686]
[1732335747427,0.0017206,98233.0,98231.0,0.00886622]
[1732335747653,0.0017206,98233.0,98231.0,0.00855777]
[1732335749247,0.04592228,98232.0,98231.0,0.00855777]
[1732335749821,0.04592228,98232.0,98231.0,0.00941757]
[1732335749856,0.04592228,98232.0,98231.0,0.0008598]
[1732335751097,0.04592228,98232.0,98231.0,0.00889161]
[1732335752413,0.04592228,98232.0,98231.0,0.0389416]
[1732335753044,0.04592228,98232.0,98217.0,0.01222042]
[1732335753260,0.04592228,98232.0,98231.0,0.00669369]
[1732335753474,0.0017206,98233.0,98217.0,0.01222042]
[1732335753475,0.04592228,98231.0,98217.0,0.01222042]
[1732335753705,0.04592228,98231.0,98217.0,0.05419153]
[1732335753924,0.04592228,98231.0,98217.0,0.01222042]
[1732335760723,0.04592228,98231.0,98218.0,0.00668218]
[1732335762544,0.1245,98230.0,98218.0,0.00668218]
[1732335763222,0.1245,98230.0,98221.0,0.4906754]
[1732335763442,0.1245,98230.0,98222.0,0.4906754]
[1732335763659,0.1245,98230.0,98222.0,0.49735719]
[1732335764325,0.1245,98230.0,98223.0,0.4906754]
[1732335764540,0.1245,98230.0,98224.0,0.4906754]
[1732335764748,0.1245,98230.0,98224.0,0.49735507]
[1732335765435,0.0017196,98232.0,98226.0,0.4906754]
[1732335765694,0.0017196,98232.0,98229.0,0.4906754]
[1732335766170,0.0017196,98232.0,98230.0,0.51647665]
[1732335766411,0.0017196,98232.0,98230.0,0.02580125]
[1732335767120,0.00038661,98232.0,98230.0,0.02580125]
[1732335767593,0.00038661,98232.0,98231.0,0.02794767]
[1732335768086,0.00038661,98232.0,98231.0,0.0537505]
[1732335769448,0.00038661,98232.0,98231.0,0.2001505]
[1732335769676,0.00038661,98232.0,98231.0,0.24096558]
[1732335771229,0.00038661,98232.0,98231.0,0.74096558]
[1732335771453,0.00038661,98232.0,98231.0,1.27834263]
[1732335771736,0.00038661,98232.0,98231.0,0.74096558]
[1732335771953,0.00038661,98232.0,98231.0,1.27832876]
[1732335772384,0.00038661,98232.0,98231.0,0.74096558]
[1732335774804,0.00038661,98232.0,98231.0,0.74182538]
[1732335776403,0.00038661,98232.0,98231.0,0.56252885]
[1732335776653,0.00038661,98232.0,98231.0,0.54715405]
[1732335777113,0.00038661,98232.0,98231.0,0.58553532]
[1732335777369,0.00038661,98232.0,98231.0,0.08553532]
[1732335778546,0.00038661,98232.0,98231.0,0.10853532]
[1732335778794,0.00038661,98232.0,98231.0,0.23003532]
[1732335779218,0.00038661,98232.0,98231.0,0.73003532]
[1732335780083,0.00038661,98232.0,98231.0,0.73740864]
[1732335787519,0.00038661,98232.0,98231.0,0.76504419]
[1732335788259,0.00038661,98232.0,98231.0,0.71994419]
[1732335789164,0.00038661,98232.0,98231.0,0.64354419]
[1732335789369,0.00038661,98232.0,98231.0,0.09290864]
[1732335791036,0.04648661,98232.0,98231.0,0.08553532]
[1732335792589,0.12368661,98232.0,98231.0,0.08553532]
[1732335794109,0.17088136,98232.0,98231.0,0.04472024]
[1732335794747,0.04592228,98221.0,98220.0,0.0042649]
[1732335795215,0.04592228,98221.0,98220.0,0.04459228]
[1732335795415,0.04592228,98221.0,98220.0,0.0042649]
[1732335796563,0.0772,98231.0,98220.0,0.0042649]
[1732335796767,0.04592228,98228.0,98220.0,0.0042649]
[1732335797303,0.0772,98231.0,98220.0,0.0042649]
[1732335797767,0.12312228,98231.0,98220.0,0.0042649]
[1732335797996,0.12312228,98231.0,98221.0,0.023]
[1732335800378,0.12312228,98231.0,98220.0,0.0008598]
[1732335804689,0.12312228,98231.0,98224.0,0.30641373]
[1732335804908,0.0772,98231.0,98224.0,0.30641373]
[1732335805115,0.04648661,98232.0,98220.0,0.0008598]
[1732335805116,0.00038661,98232.0,98220.0,0.0008598]
[1732335806595,0.00038661,98232.0,98220.0,0.0238598]
[1732335806804,0.00038661,98232.0,98221.0,0.30635746]
[1732335807018,0.00038661,98232.0,98223.0,0.30635746]
[1732335807476,0.00038661,98232.0,98219.0,0.25757538]
[1732335807718,0.00038661,98232.0,98219.0,0.20879146]
[1732335807924,0.00038661,98232.0,98217.0,0.03651054]
[1732335808140,0.00038661,98232.0,98212.0,0.48772843]
[1732335808344,0.00038661,98232.0,98212.0,0.43895004]
[1732335808823,0.00038661,98232.0,98213.0,0.01755459]
[1732335809268,0.94524752,98250.0,98214.0,0.002]
[1732335809503,0.00114831,98249.0,98244.0,0.40212706]
[1732335809713,0.00114831,98249.0,98245.0,0.40212706]
[1732335809922,0.00114831,98249.0,98242.0,0.40212706]
[1732335811028,0.00114831,98249.0,98243.0,0.40212706]
[1732335811866,0.00114831,98249.0,98244.0,0.03737456]
[1732335812292,0.1292,98248.0,98244.0,0.03737456]
[1732335812495,0.00114831,98247.0,98244.0,0.03737456]
[1732335812704,0.1292,98246.0,98244.0,0.03737456]
[1732335812912,0.13034831,98245.0,98244.0,0.03737456]
[1732335814167,0.1292,98245.0,98244.0,0.03737456]
[1732335814374,0.0797,98245.0,98244.0,0.03737456]
[1732335814648,0.0797,98245.0,98241.0,0.25369136]
[1732335814884,0.94524752,98250.0,98236.0,0.0485]
[1732335815120,0.94524752,98250.0,98237.0,0.00101779]
[1732335815563,0.94524752,98250.0,98236.0,0.0485]
[1732335816237,0.94524752,98250.0,98237.0,0.00101778]
[1732335816671,0.94524752,98250.0,98236.0,0.05899654]
[1732335816673,0.94524752,98250.0,98237.0,0.023]
[1732335816880,0.94524752,98250.0,98238.0,0.01049654]
[1732335817783,0.94524752,98250.0,98239.0,0.023]
[1732335818209,0.94524752,98250.0,98236.0,0.0485]
[1732335818425,0.94524752,98250.0,98237.0,0.00101776]
[1732335819342,0.94524752,98250.0,98241.0,0.30640707]
[1732335819575,0.94524752,98250.0,98242.0,0.30742482]
[1732335819799,0.0017198,98250.0,98243.0,0.02401775]
[1732335820261,0.0017198,98250.0,98243.0,0.33042482]
[1732335822030,0.0017198,98250.0,98245.0,0.023]
[1732335822261,0.0017198,98250.0,98246.0,0.00101765]
[1732335822494,0.0017198,98250.0,98247.0,0.30742472]
[1732335823005,0.0017198,98250.0,98247.0,0.00101765]
[1732335823433,0.0017198,98250.0,98247.0,0.30942472]
[1732335824572,0.0017198,98250.0,98247.0,0.00301765]
[1732335824743,0.0017198,98250.0,98249.0,0.002]
[1732335824954,0.0017198,98250.0,98249.0,0.00301765]
[1732335826150,0.0017198,98250.0,98249.0,0.00101765]
[1732335826353,0.0017198,98250.0,98249.0,0.49097183]
[1732335826791,0.0017198,98250.0,98242.0,0.023]
[1732335826792,0.0017198,98250.0,98248.0,0.49097183]
[1732335827600,0.0017198,98250.0,98248.0,0.52185433]
[1732335827932,0.02039034,98267.0,98264.0,0.002]
[1732335828181,0.0474192,98282.0,98267.0,0.00541009]
[1732335828391,0.00114831,98281.0,98277.0,0.40162772]
[1732335828608,0.00114831,98281.0,98267.0,0.00541009]
[1732335828609,0.0474192,98282.0,98280.0,0.40162772]
[1732335829084,0.0474192,98282.0,98278.0,0.40162772]
[1732335829315,0.0017192,98282.0,98280.0,0.40162772]
[1732335829546,0.0017192,98282.0,98279.0,0.40162772]
[1732335829758,0.0017192,98282.0,98277.0,0.40162772]
[1732335829970,0.0017192,98282.0,98279.0,0.40149367]
[1732335830175,0.0017192,98282.0,98280.0,0.40149367]
[1732335830397,0.0017192,98282.0,98279.0,0.40149367]
[1732335830838,0.0017192,98282.0,98276.0,0.40149367]
[1732335831054,0.0017192,98282.0,98268.0,0.0797]
[1732335831197,0.0017192,98282.0,98269.0,0.0010175]
[1732335833202,0.0017192,98282.0,98270.0,0.00540992]
[1732335833422,0.0017192,98282.0,98271.0,0.00101749]
[1732335834094,0.0017192,98282.0,98271.0,0.00301749]
[1732335834563,0.0017192,98282.0,98271.0,0.00101749]
[1732335834800,0.0017192,98282.0,98271.0,0.00301749]
[1732335835212,0.0017192,98282.0,98274.0,0.002]
[1732335835474,0.0017192,98282.0,98278.0,0.002]
[1732335835725,0.0017192,98282.0,98279.0,0.00101738]
[1732335835941,0.0017192,98282.0,98281.0,0.30589994]
[1732335836153,0.0017192,98282.0,98281.0,0.1218]
[1732335836382,0.0017192,98282.0,98281.0,0.1448]
[1732335836863,0.0017192,98282.0,98281.0,0.14781725]
[1732335837077,0.0017192,98282.0,98281.0,0.18281169]
[1732335837292,0.0017192,98282.0,98281.0,0.18081169]
[1732335837477,0.0017192,98282.0,98281.0,0.18281169]
[1732335838146,0.0017192,98282.0,98281.0,0.18179444]
[1732335838378,0.0017192,98282.0,98281.0,0.72212197]
[1732335838605,0.0017192,98282.0,98281.0,0.72012197]
[1732335838833,0.0017192,98282.0,98281.0,1.02485703]
[1732335839054,0.0017192,98282.0,98281.0,0.72212197]
[1732335839286,0.0017192,98282.0,98281.0,1.02685703]
[1732335839550,0.0017192,98282.0,98281.0,0.72012197]
[1732335839782,0.0017192,98282.0,98281.0,0.72212197]
[1732335840012,0.0017192,98282.0,98281.0,0.67502197]
[1732335840238,0.0017192,98282.0,98281.0,0.09832197]
[1732335840468,0.08360033,98282.0,98281.0,0.07532197]
[1732335840710,0.00170033,98282.0,98281.0,0.07532197]
[1732335841380,0.00170033,98282.0,98281.0,0.07633929]
[1732335841807,0.00170033,98282.0,98281.0,0.14085929]
[1732335842107,0.00170033,98282.0,98281.0,0.13985929]
[1732335842255,0.00170033,98282.0,98281.0,0.63884197]
[1732335842470,0.00170033,98282.0,98281.0,0.64084197]
[1732335843639,0.00170033,98282.0,98281.0,0.63884197]
[1732335843869,0.00170033,98282.0,98281.0,0.64084197]
[1732335844076,0.00170033,98282.0,98281.0,0.63884197]
[1732335844328,0.00170033,98282.0,98281.0,0.64084197]
[1732335844537,0.00170033,98282.0,98281.0,0.63884197]
[1732335845627,0.00170033,98282.0,98281.0,0.64084197]
[1732335848114,0.00170033,98282.0,98281.0,0.59751497]
[1732335848366,0.0017192,98300.0,98281.0,0.59751497]
[1732335848367,0.0017192,98300.0,98283.0,0.023]
[1732335851449,0.0819,98299.0,98283.0,0.023]
[1732335851693,0.05004831,98298.0,98283.0,0.023]
[1732335852134,0.05004831,98298.0,98282.0,0.00370959]
[1732335852135,0.08304831,98297.0,98282.0,0.00370959]
[1732335853310,0.0489,98296.0,98282.0,0.00370959]
[1732335853558,0.08304831,98295.0,98282.0,0.00370959]
[1732335853787,0.0819,98293.0,98282.0,0.00370959]
[1732335854019,0.0819,98291.0,98283.0,0.023]
[1732335854241,0.00114831,98290.0,98283.0,0.023]
[1732335854686,0.00114831,98290.0,98282.0,0.00370959]
[1732335855894,0.00114831,98290.0,98264.0,0.0009947]
[1732335855895,0.1,98282.0,98264.0,0.0009947]
[1732335856156,0.1,98278.0,98264.0,0.0009947]
[1732335856365,0.00114831,98277.0,98265.0,0.040537]
[1732335857533,0.1,98279.0,98265.0,0.040537]
[1732335857534,0.077,98276.0,98266.0,0.023]
[1732335857749,0.00114831,98275.0,98266.0,0.023]
[1732335859166,0.077,98273.0,98266.0,0.023]
[1732335859380,0.00114831,98272.0,98265.0,0.040537]
[1732335859617,0.1488,98274.0,98265.0,0.040537]
[1732335859618,0.177,98271.0,98265.0,0.040537]
[1732335859837,0.077,98269.0,98265.0,0.040537]
[1732335860049,0.00114831,98268.0,98265.0,0.040537]
[1732335860257,0.1,98266.0,98265.0,0.040537]
[1732335860500,0.22694831,98266.0,98265.0,0.040537]
[1732335860749,0.2258,98266.0,98265.0,0.040537]
[1732335868079,0.2258,98266.0,98265.0,0.0413966]
[1732335872396,0.3258,98266.0,98265.0,0.0413966]
[1732335872879,0.3258,98266.0,98265.0,0.0008596]